bitfinex-derivatives/quotes_ETHF0:USTF0_20260207
["timestamp","ask_amount","ask_price","bid_price","bid_amount"]
[1770494204872,42.84364331,2090.8,2090.0,5.3462518]
[1770494205179,47.8000032,2091.2,2090.4,5.038354]
[1770494205376,4.95635989,2090.9,2090.1,5.038354]
[1770494205972,42.84364331,2091.1,2090.1,5.038354]
[1770494206278,4.95635989,2091.1,2090.2,5.038354]
[1770494206479,4.95635989,2091.1,2090.3,5.038354]
[1770494207377,4.95635989,2091.3,2090.3,5.038354]
[1770494208277,4.95635989,2091.3,2090.5,5.038354]
[1770494208577,42.84364331,2091.5,2090.6,5.038354]
[1770494208578,4.95635989,2091.5,2090.6,5.038354]
[1770494210581,4.95635989,2091.5,2090.5,5.038354]
[1770494210776,4.95635989,2091.5,2090.3,5.038354]
[1770494210777,4.95635989,2091.4,2090.3,5.038354]
[1770494211981,4.95635989,2091.3,2090.3,5.038354]
[1770494212584,4.95635989,2091.3,2090.1,2.85406547]
[1770494212785,4.95635989,2091.3,2090.2,5.038354]
[1770494214082,4.95635989,2091.2,2090.2,5.038354]
[1770494218483,4.95635989,2091.1,2090.0,3.16196327]
[1770494218684,4.95635989,2090.9,2090.0,0.3078978]
[1770494218883,4.95635989,2090.8,2090.0,0.3078978]
[1770494219585,4.95635989,2090.8,2090.0,0.00554974]
[1770494219787,4.95635989,2090.8,2089.5,6.95977778]
[1770494219788,4.95635989,2090.6,2089.5,2.85406547]
[1770494220092,4.95635989,2090.5,2089.5,7.89241947]
[1770494220292,4.95635989,2090.4,2089.5,5.038354]
[1770494220685,4.95635989,2090.4,2089.5,7.89241947]
[1770494220889,4.95635989,2090.4,2089.5,7.89738572]
[1770494221292,4.95635989,2090.0,2089.5,0.00496625]
[1770494221493,4.96113245,2090.0,2089.5,0.00496625]
[1770494222489,4.96113245,2090.0,2088.7,2.85406547]
[1770494222697,4.95635989,2089.7,2088.7,0.31088908]
[1770494222890,4.95635989,2089.7,2088.7,5.038354]
[1770494223088,4.95635989,2089.7,2088.8,5.038354]
[1770494223590,4.95635989,2089.7,2088.8,5.04272413]
[1770494225189,4.95635989,2089.9,2088.8,5.04272413]
[1770494227593,6.5567325,2089.9,2088.8,5.04272413]
[1770494229493,6.5567325,2089.9,2088.8,0.00437013]
[1770494230496,7.93058447,2089.9,2088.8,0.00437013]
[1770494230890,7.93058447,2089.9,2088.8,6.2574676]
[1770494231097,8.17001447,2089.9,2088.8,0.00437013]
[1770494231302,6.5567325,2089.7,2088.0,6.49273747]
[1770494232187,6.5567325,2089.7,2088.0,6.80803889]
[1770494233299,7.05506693,2089.6,2088.0,6.80803889]
[1770494236594,7.05506693,2089.6,2088.2,7.16406283]
[1770494237796,7.05506693,2089.6,2088.2,7.40368283]
[1770494239201,7.05506693,2089.6,2088.2,7.16406283]
[1770494241004,7.05506693,2089.4,2088.2,7.16406283]
[1770494241199,7.05506693,2089.3,2088.2,7.16406283]
[1770494241405,7.05506693,2089.2,2088.0,7.47936425]
[1770494242100,7.05506693,2089.2,2088.0,7.16780144]
[1770494248910,7.05506693,2089.2,2088.1,7.16406283]
[1770494249112,7.05506693,2089.2,2088.2,7.16406283]
[1770494250809,7.05506693,2089.2,2088.3,7.16406283]
[1770494252914,7.05506693,2089.3,2088.3,7.16406283]
[1770494253317,7.05506693,2089.3,2088.4,7.16406283]
[1770494253512,42.84364331,2089.7,2088.7,7.16406283]
[1770494253712,7.05506693,2089.7,2088.8,7.16406283]
[1770494255014,7.05506693,2089.7,2088.8,7.40360283]
[1770494255217,7.05506693,2089.8,2088.9,7.16406283]
[1770494258514,48.56090164,2090.0,2088.9,7.16406283]
[1770494258719,7.46613176,2090.0,2089.1,7.30532485]
[1770494259720,0.00477256,2090.0,2089.1,7.54484485]
[1770494259917,7.46613176,2090.0,2089.1,7.30532485]
[1770494265016,7.4613592,2089.9,2089.1,7.30532485]
[1770494266219,7.4613592,2089.8,2088.7,7.54488485]
[1770494266420,7.4613592,2089.7,2088.6,7.30532485]
[1770494267916,7.4613592,2089.6,2088.6,7.30532485]
[1770494268921,7.4613592,2089.5,2088.6,7.30532485]
[1770494271125,7.4613592,2089.6,2088.6,7.30532485]
[1770494272025,7.4613592,2089.6,2088.7,7.30532485]
[1770494272929,7.4613592,2089.7,2088.8,7.30532485]
[1770494274028,7.4613592,2089.8,2088.8,7.30532485]
[1770494274227,7.4613592,2089.8,2088.9,7.30532485]
[1770494275728,7.4613592,2089.7,2088.9,7.30532485]
[1770494277031,7.4613592,2089.7,2089.0,7.30532485]
[1770494279535,7.4613592,2089.7,2089.1,7.30532485]
[1770494279827,2.8574374,2089.9,2089.1,7.30532485]
[1770494280032,7.4613592,2089.9,2089.1,7.30532485]
[1770494280324,7.4613592,2089.9,2089.2,7.30532485]
[1770494280526,2.86220996,2090.0,2089.2,7.30532485]
[1770494280731,2.8574374,2090.2,2089.4,7.30532485]
[1770494281031,10.3187966,2090.3,2089.5,7.30532485]
[1770494281230,7.4613592,2090.2,2089.5,7.30532485]
[1770494281526,7.4613592,2090.1,2089.3,10.15939032]
[1770494281727,7.4613592,2090.0,2089.4,7.30532485]
[1770494282432,7.46551443,2090.1,2089.4,7.30532485]
[1770494283322,7.4613592,2090.0,2089.3,0.00416371]
[1770494283530,7.4613592,2089.8,2089.3,0.00416371]
[1770494285131,7.4613592,2089.8,2089.3,7.30948856]
[1770494286634,7.4613592,2089.8,2089.3,0.00416371]
[1770494286938,10.3187966,2089.8,2089.3,0.00416371]
[1770494287238,7.91497303,2089.7,2089.3,0.00416371]
[1770494295043,7.91497303,2089.7,2089.3,8.16444551]
[1770494295244,7.86643472,2089.8,2089.3,8.16444551]
[1770494296642,2.8574374,2089.9,2089.3,8.16444551]
[1770494296853,10.72387212,2089.9,2089.3,8.16444551]
[1770494298549,7.86643472,2089.8,2089.3,8.16444551]
[1770494300953,2.8574374,2089.9,2089.3,8.16444551]
[1770494301159,2.8574374,2090.0,2089.3,8.16444551]
[1770494301349,10.72387212,2090.0,2089.3,8.16444551]
[1770494301549,10.72387212,2090.0,2089.4,8.1602818]
[1770494301760,7.86643472,2089.9,2089.4,8.1602818]
[1770494302660,7.86643472,2090.0,2089.4,8.1602818]
[1770494302962,7.86643472,2090.0,2089.4,9.13244363]
[1770494303157,2.86159263,2090.1,2089.4,9.13244363]
[1770494303362,0.00415523,2090.1,2089.5,8.1602818]
[1770494304961,7.87058995,2090.1,2089.5,8.1602818]
[1770494305763,7.87058995,2090.1,2089.5,11.01434727]
[1770494305963,7.87058995,2090.1,2089.6,8.1602818]
[1770494306164,0.00415523,2090.1,2089.6,8.1602818]
[1770494307166,7.87058995,2090.1,2089.6,8.1602818]
[1770494310566,0.00415523,2090.1,2089.6,8.1602818]
[1770494310964,7.86643472,2090.3,2089.6,9.13244363]
[1770494311766,2.8574374,2090.5,2089.9,8.1602818]
[1770494311972,10.72387212,2090.8,2090.1,8.1602818]
[1770494312172,7.86643472,2090.7,2090.1,8.1602818]
[1770494313071,7.87219461,2090.7,2090.1,8.1602818]
[1770494319471,7.87219461,2090.7,2089.7,2.85406547]
[1770494319773,8.22053362,2090.6,2089.6,8.3201171]
[1770494320364,8.22053362,2090.5,2089.6,8.3201171]
[1770494321270,8.22053362,2090.5,2089.5,8.3201171]
[1770494321473,8.22053362,2090.3,2089.4,8.5595971]
[1770494323881,8.22053362,2090.4,2089.6,8.3201171]
[1770494329183,8.22053362,2090.4,2089.7,8.3201171]
[1770494334486,8.22053362,2090.4,2089.8,8.3201171]
[1770494340596,0.00575989,2090.7,2090.3,8.3201171]
[1770494340889,8.22053362,2090.8,2090.3,8.3201171]
[1770494341496,8.22053362,2090.8,2090.2,8.3201171]
[1770494341790,8.22431033,2090.8,2090.0,8.3201171]
[1770494342094,8.22431033,2090.8,2090.1,8.3201171]
[1770494344497,8.22053362,2090.4,2089.7,2.85406547]
[1770494344698,8.22053362,2090.4,2089.7,11.17418257]
[1770494344989,8.22053362,2090.4,2089.7,8.3201171]
[1770494345195,8.22053362,2090.5,2089.8,8.3201171]
[1770494345394,8.22053362,2090.5,2089.8,9.29197145]
[1770494345595,8.22053362,2090.5,2089.9,9.11192543]
[1770494348097,2.8574374,2090.7,2089.6,2.85406547]
[1770494348098,8.59210602,2090.1,2089.6,2.85406547]
[1770494348292,8.59210602,2090.3,2089.6,9.11192543]
[1770494350702,8.59210602,2089.8,2089.3,0.00416371]
[1770494350902,8.59210602,2089.8,2089.3,9.11608914]
[1770494351407,8.59210602,2089.8,2089.1,2.85406547]
[1770494351903,8.59210602,2089.8,2089.1,12.24234684]
[1770494352296,8.59210602,2089.8,2089.1,9.38828137]
[1770494352499,8.59210602,2089.8,2089.1,9.39349433]
[1770494355708,8.59210602,2089.8,2089.1,0.00521296]
[1770494360109,8.59210602,2089.8,2089.1,9.39349433]
[1770494361711,8.51010812,2090.1,2089.1,9.39349433]
[1770494364415,8.51010812,2090.1,2089.2,9.38828137]
[1770494371718,8.51010812,2090.1,2089.3,9.38828137]
[1770494376124,11.36754552,2090.1,2089.3,12.24234684]
[1770494376328,8.63411904,2090.0,2089.4,9.49203603]
[1770494377128,11.49155644,2090.2,2089.5,9.49203603]
[1770494377615,8.63411904,2090.2,2089.6,9.49203603]
[1770494378019,8.63411904,2090.3,2089.7,9.49203603]
[1770494380825,8.63411904,2090.4,2089.7,9.73147603]
[1770494381034,11.49155644,2090.6,2089.8,9.49203603]
[1770494381224,8.63411904,2090.6,2089.8,9.49203603]
[1770494382530,8.63411904,2090.3,2089.4,12.3461015]
[1770494384729,8.63411904,2090.1,2089.3,9.49203603]
[1770494386427,8.63411904,2089.9,2089.2,0.23951]
[1770494386627,8.63411904,2089.9,2089.1,2.85927843]
[1770494386827,8.63411904,2089.9,2089.1,0.00521296]
[1770494387331,8.63411904,2089.9,2089.1,2.85927843]
[1770494388025,8.63411904,2089.9,2089.1,0.00521296]
[1770494388426,8.63411904,2089.8,2089.1,0.00521296]
[1770494389630,8.63411904,2089.8,2089.1,9.49724899]
[1770494390932,8.63411904,2089.7,2089.1,9.49724899]
[1770494395734,8.63411904,2089.8,2089.1,9.49724899]
[1770494395928,2.8574374,2090.0,2089.1,9.49724899]
[1770494396130,2.8574374,2090.1,2089.3,9.49203603]
[1770494396335,8.63411904,2090.3,2089.5,9.49203603]
[1770494396530,2.8574374,2090.5,2089.6,9.49203603]
[1770494396734,2.8574374,2090.5,2089.6,9.73149603]
[1770494396932,0.00377671,2090.8,2090.0,9.49203603]
[1770494397136,11.49155644,2091.3,2090.3,9.49203603]
[1770494397446,8.63411904,2091.4,2090.4,9.49203603]
[1770494397737,8.63411904,2091.9,2090.8,9.49203603]
[1770494398043,2.8574374,2092.2,2091.1,9.49203603]
[1770494398336,8.63411904,2091.9,2091.1,0.00399762]
[1770494398638,8.63411904,2092.1,2091.1,9.49603365]
[1770494399438,8.63411904,2092.1,2091.1,0.00399762]
[1770494400339,0.0035336,2092.2,2090.3,9.73141603]
[1770494400340,8.63411904,2091.9,2090.3,9.73141603]
[1770494401240,8.63411904,2091.9,2090.3,9.73755148]
[1770494401835,8.63411904,2091.9,2090.3,10.04039571]
[1770494402838,0.08324702,2091.8,2090.3,0.00613545]
[1770494403032,8.63411904,2091.4,2090.3,0.00613545]
[1770494403744,8.63411904,2091.3,2090.3,0.00613545]
[1770494404140,8.63411904,2091.3,2090.3,9.49817148]
[1770494405645,8.63411904,2091.3,2090.3,9.73754148]
[1770494406141,9.2373153,2091.9,2090.6,9.15723804]
[1770494407539,9.2373153,2091.7,2090.6,9.15723804]
[1770494409244,9.2373153,2091.9,2090.6,9.15723804]
[1770494409845,0.0035336,2092.2,2090.6,9.15723804]
[1770494410143,9.2373153,2092.1,2090.3,0.00613545]
[1770494410341,9.2373153,2091.9,2090.4,9.15723804]
[1770494410550,7.26946409,2092.0,2090.4,9.15723804]
[1770494410551,9.2373153,2091.7,2090.4,9.15723804]
[1770494410848,9.2373153,2091.5,2090.4,9.15723804]
[1770494411241,2.8574374,2092.0,2090.4,9.15723804]
[1770494411445,9.2373153,2091.8,2090.4,9.15723804]
[1770494411644,9.2373153,2091.6,2090.4,9.15723804]
[1770494411846,9.12194254,2091.8,2090.4,9.15723804]
[1770494412045,9.12194254,2091.6,2090.4,9.15723804]
[1770494412241,9.12194254,2091.6,2090.4,9.39660804]
[1770494412457,0.0035336,2092.2,2091.1,9.44718298]
[1770494412655,9.12547614,2092.2,2091.1,9.68646298]
[1770494414662,9.12547614,2092.2,2090.6,9.44718298]
[1770494414663,9.12194254,2092.0,2090.6,9.44718298]
[1770494414964,4.76093554,2092.1,2090.6,9.44718298]
[1770494414965,9.12194254,2091.8,2090.6,9.44718298]
[1770494415567,9.12194254,2091.6,2090.6,9.44718298]
[1770494417874,0.0035336,2092.2,2091.2,9.44718298]
[1770494418074,9.12194254,2092.0,2091.2,9.44718298]
[1770494418264,9.12194254,2091.8,2091.2,9.44718298]
[1770494418872,9.12194254,2091.8,2090.5,9.68654298]
[1770494419075,9.12194254,2091.6,2090.5,9.68654298]
[1770494421376,14.17298731,2091.5,2090.5,9.68654298]
[1770494421578,9.12194254,2091.5,2090.5,9.68654298]
[1770494422672,14.17787137,2091.4,2090.5,9.68654298]
[1770494422873,9.12194254,2091.4,2090.5,9.68654298]
[1770494423070,9.12194254,2091.4,2090.3,0.00613545]
[1770494423274,5.0602332,2091.3,2090.3,9.45331843]
[1770494423469,14.18217574,2091.2,2090.3,9.45331843]
[1770494423676,42.84364331,2091.5,2090.3,9.45331843]
[1770494423677,9.12194254,2091.0,2090.3,9.69269843]
[1770494425282,5.04782952,2090.9,2090.3,9.69269843]
[1770494425580,9.12194254,2091.2,2090.3,9.69269843]
[1770494425780,14.17011639,2091.1,2090.3,9.69269843]
[1770494425980,5.04817385,2091.0,2090.3,9.69269843]
[1770494426181,5.04817385,2090.9,2090.3,9.69269843]
[1770494426382,5.04817385,2090.8,2090.3,9.69269843]
[1770494426680,9.12194254,2091.1,2090.3,9.69269843]
[1770494426982,5.00531765,2091.0,2090.3,9.69269843]
[1770494427283,5.00531765,2090.9,2090.3,9.69269843]
[1770494427478,9.12194254,2091.1,2090.3,9.69269843]
[1770494427679,4.94679084,2091.0,2090.3,9.69269843]
[1770494427880,4.94679084,2090.9,2090.3,9.69269843]
[1770494428074,9.12194254,2091.2,2090.3,9.69269843]
[1770494428278,4.94768016,2091.1,2090.3,9.69269843]
[1770494428582,4.94768016,2091.0,2090.3,9.69269843]
[1770494428783,51.96558585,2091.2,2090.3,9.69269843]
[1770494428784,9.12194254,2091.2,2090.3,9.69269843]
[1770494429077,51.96558585,2091.2,2090.3,9.69269843]
[1770494429274,9.12194254,2091.0,2090.3,0.24551545]
[1770494429474,9.12194254,2090.6,2090.1,0.2769382]
[1770494429681,9.12194254,2090.6,2089.9,6.92636998]
[1770494430581,48.55612908,2091.0,2090.3,7.10541615]
[1770494430780,51.96558585,2091.1,2090.3,7.34479615]
[1770494431483,9.12194254,2091.0,2090.3,7.34479615]
[1770494431881,9.12665151,2091.0,2090.3,7.34479615]
[1770494432387,0.00470897,2091.0,2090.3,7.34479615]
[1770494432687,9.12665151,2091.0,2090.3,7.34479615]
[1770494432987,9.12665151,2091.0,2090.3,0.23938]
[1770494433288,9.12665151,2091.0,2090.3,7.08969358]
[1770494435888,9.12665151,2091.0,2090.3,0.23938]
[1770494436283,8.00534347,2090.9,2090.3,0.23938]
[1770494436484,50.84898678,2090.9,2089.9,6.36975701]
[1770494436689,8.00534347,2090.8,2089.9,6.36975701]
[1770494437681,8.00534347,2090.5,2089.9,6.36975701]
[1770494440688,4.57721114,2090.4,2089.9,6.36975701]
[1770494440991,8.00534347,2090.4,2089.9,6.36975701]
[1770494442692,8.01534347,2090.4,2089.9,6.36975701]
[1770494443691,42.84364331,2090.7,2090.1,5.0209087]
[1770494443892,8.00534347,2090.9,2090.1,5.0209087]
[1770494444092,8.00534347,2090.7,2090.1,5.0209087]
[1770494444286,4.57665841,2090.6,2090.1,5.0209087]
[1770494444594,8.00534347,2090.5,2090.0,5.08003559]
[1770494445796,8.00534347,2090.8,2090.0,5.08003559]
[1770494445992,8.00534347,2090.6,2090.0,0.23941]
[1770494446399,8.00534347,2090.4,2090.0,0.23941]
[1770494446593,8.00534347,2090.4,2090.0,4.71050211]
[1770494448498,8.00534347,2090.4,2090.0,0.23941]
[1770494450894,8.00534347,2090.4,2089.9,0.31744946]
[1770494451093,8.00534347,2090.2,2089.9,0.31744946]
[1770494451397,8.00534347,2090.2,2089.5,3.88889668]
[1770494452297,8.00534347,2090.2,2089.5,4.4483275]
[1770494455701,8.00534347,2090.2,2089.5,0.55943082]
[1770494459206,8.00534347,2090.2,2089.5,3.49134216]
[1770494460497,50.84898678,2090.4,2090.0,3.37354475]
[1770494460805,8.00534347,2090.9,2090.5,0.23935]
[1770494461110,8.00534347,2090.9,2090.5,4.02277392]
[1770494461302,8.00534347,2091.1,2090.5,4.02277392]
[1770494461504,8.01005244,2091.0,2090.5,0.23935]
[1770494461705,8.01005244,2091.0,2090.5,4.01428155]
[1770494462408,0.00470897,2091.0,2090.7,3.8227735]
[1770494462609,8.00534347,2091.3,2090.7,3.8227735]
[1770494462799,8.00534347,2091.3,2090.6,3.90875523]
[1770494463508,8.01034543,2091.3,2090.6,3.90875523]
[1770494465211,1.96e-06,2091.3,2091.0,3.44183627]
[1770494465405,8.00534543,2091.3,2090.9,0.2393]
[1770494465802,1.96e-06,2091.3,2090.9,3.52875748]
[1770494466208,1.96e-06,2091.3,2090.9,3.53293012]
[1770494466413,5.95801412,2091.7,2090.9,3.53293012]
[1770494467309,5.96234871,2091.7,2090.9,3.53293012]
[1770494467513,5.96234871,2091.7,2090.9,0.24347264]
[1770494472818,5.31054018,2091.5,2090.9,0.24347264]
[1770494483425,5.31054018,2091.5,2091.0,0.29714316]
[1770494483636,5.31054018,2091.5,2091.1,0.05785316]
[1770494484129,5.31054018,2091.5,2091.0,0.23929]
[1770494487715,5.31054018,2091.5,2090.9,0.00417264]
[1770494487920,5.31054018,2092.6,2091.9,0.23919]
[1770494488122,5.31054018,2092.4,2091.9,0.23919]
[1770494488318,5.31054018,2092.4,2091.2,5.70476423]
[1770494488926,5.31427122,2092.4,2091.5,0.23924]
[1770494489123,5.31427122,2092.4,2091.6,0.23923]
[1770494490319,0.00373104,2092.4,2091.5,5.70476423]
[1770494490522,5.31054018,2092.8,2092.1,0.23917]
[1770494491132,5.31054018,2092.8,2092.2,0.23916]
[1770494491532,5.31473089,2092.8,2092.2,0.23916]
[1770494492730,5.31054018,2092.6,2091.8,0.2392]
[1770494493231,5.31054018,2092.4,2091.1,5.70476423]
[1770494493432,5.31054018,2092.4,2091.4,0.23924]
[1770494493633,5.31054018,2092.4,2091.5,0.23924]
[1770494494429,5.31054018,2092.4,2091.6,0.23923]
[1770494496331,4.13744907,2092.8,2091.2,1.1007]
[1770494496526,4.13744907,2092.8,2092.4,0.23914]
[1770494496829,4.13744907,2092.8,2092.4,0.24427544]
[1770494497032,3.65417907,2092.8,2092.5,0.23913]
[1770494497734,5.69940854,2093.7,2092.5,1.00223907]
[1770494497735,3.75585056,2093.6,2092.5,1.00223907]
[1770494497929,3.75952079,2093.6,2092.5,1.00223907]
[1770494498536,3.75952079,2093.6,2092.7,0.23911]
[1770494498836,3.75952079,2093.6,2092.9,0.80737698]
[1770494499036,3.75952079,2093.6,2092.8,0.2391]
[1770494499338,3.75952079,2093.6,2092.9,0.23908]
[1770494499738,0.00367023,2093.6,2092.8,0.76513538]
[1770494499940,0.00367023,2093.6,2093.3,0.61386338]
[1770494500238,3.75952079,2093.6,2093.2,0.23905]
[1770494502241,3.75952079,2093.6,2093.2,0.52463242]
[1770494502443,3.75952079,2093.6,2093.2,0.23905]
[1770494505340,3.75952079,2093.6,2092.9,0.35620595]
[1770494505544,3.75952079,2093.6,2092.6,0.23911]
[1770494505745,3.75952079,2093.6,2092.8,0.30647111]
[1770494505939,3.75952079,2093.6,2092.8,0.65700754]
[1770494506139,3.75952079,2093.6,2092.8,0.58962643]
[1770494509441,3.75952079,2093.6,2093.0,0.23907]
[1770494509640,3.75952079,2093.6,2093.1,0.23905]
[1770494510749,3.75952079,2093.6,2093.2,0.23905]
[1770494510943,3.75585056,2094.4,2093.4,0.23903]
[1770494511837,3.76161174,2094.4,2093.4,0.23903]
[1770494512442,3.76161174,2094.4,2092.8,0.35053643]
[1770494512753,3.76161174,2094.4,2092.9,4.98061904]
[1770494513050,3.76161174,2094.4,2093.8,0.23897]
[1770494514652,3.76161174,2094.4,2092.8,0.34895329]
[1770494514946,3.76161174,2094.4,2092.4,0.00513544]
[1770494515146,3.76161174,2094.4,2093.1,0.23905]
[1770494515543,3.76161174,2094.4,2093.2,0.23905]
[1770494516050,3.76161174,2094.4,2093.3,0.23904]
[1770494516347,3.76161174,2094.4,2092.8,0.34923768]
[1770494516545,3.76161174,2094.4,2092.5,5.68158689]
[1770494516746,3.75585056,2094.2,2092.9,0.23908]
[1770494518349,3.75585056,2094.2,2092.5,0.36099593]
[1770494518350,3.75585056,2094.2,2093.3,0.23903]
[1770494519749,3.75585056,2094.0,2093.0,0.23907]
[1770494520652,3.75585056,2094.0,2093.1,0.23906]
[1770494521150,3.75585056,2094.0,2093.6,0.23899]
[1770494521445,2.85469221,2094.4,2092.4,6.05109391]
[1770494521446,3.75585056,2094.3,2092.9,0.4229821]
[1770494521646,3.75585056,2094.3,2093.3,0.23903]
[1770494522954,3.75585056,2094.3,2093.5,0.23902]
[1770494523149,3.75585056,2094.3,2093.6,0.239]
[1770494523458,3.76161174,2094.4,2093.5,0.69122931]
[1770494523651,3.27690174,2094.4,2093.9,1.17073606]
[1770494523850,3.27690174,2094.4,2094.1,0.23895]
[1770494524456,3.27690174,2094.4,2093.6,1.20624968]
[1770494524658,3.28304694,2094.4,2093.9,1.44521968]
[1770494525050,3.28304694,2094.4,2093.9,1.28112629]
[1770494525250,2.85613258,2094.8,2094.3,1.83714629]
[1770494525455,2.85613258,2094.8,2094.3,0.23892]
[1770494525650,2.85613258,2094.8,2094.3,1.21512497]
[1770494525851,0.98967745,2095.0,2094.5,0.97620497]
[1770494526248,0.98967745,2095.0,2094.4,1.21511497]
[1770494526463,0.99351975,2095.0,2094.4,1.21511497]
[1770494526660,0.0038423,2095.0,2094.4,0.97620497]
[1770494526855,0.99351975,2095.0,2094.2,0.23893]
[1770494529863,0.99351975,2095.0,2094.3,0.23892]
[1770494531564,0.99351975,2095.0,2094.4,0.23891]
[1770494532061,0.99351975,2095.0,2093.9,0.48474921]
[1770494533463,0.99351975,2095.0,2094.4,0.23891]
[1770494534459,0.99351975,2095.0,2094.5,0.23889]
[1770494534765,0.99351975,2095.0,2094.6,0.56555318]
[1770494534966,0.57203852,2095.2,2094.7,0.80443318]
[1770494535265,0.57203852,2095.2,2094.7,0.23888]
[1770494535563,0.57203852,2095.2,2094.7,0.80443318]
[1770494535955,0.5766976,2095.2,2094.7,0.80443318]
[1770494536560,0.57203852,2095.8,2094.9,0.56555318]
[1770494536760,0.57203852,2095.6,2094.9,0.56555318]
[1770494537164,0.57203852,2095.6,2094.9,0.80440318]
[1770494537765,0.57540676,2095.6,2094.9,0.80440318]
[1770494537964,0.57540676,2095.6,2095.0,0.56555318]
[1770494538164,0.57540676,2095.6,2095.1,0.56555318]
[1770494538365,0.57540676,2095.6,2095.2,0.56555318]
[1770494539165,0.00336824,2095.6,2095.3,0.56555318]
[1770494539366,0.57540676,2095.6,2095.2,0.23881]
[1770494539567,0.57540676,2095.6,2095.1,0.00578463]
[1770494540474,0.57540676,2095.6,2095.2,0.80437318]
[1770494540771,0.27319551,2095.8,2095.4,0.56555318]
[1770494540973,0.27319551,2096.3,2095.4,0.56555318]
[1770494541271,0.27319551,2096.1,2095.5,0.56555318]
[1770494541872,0.27809933,2096.1,2095.5,0.56555318]
[1770494542073,0.27809933,2096.1,2095.5,0.95991017]
[1770494543071,0.27809933,2096.1,2095.6,0.56555318]
[1770494543665,0.27809933,2096.1,2095.5,0.23879]
[1770494543864,0.27809933,2096.1,2095.1,0.00578463]
[1770494544066,0.2819903,2095.9,2094.9,0.23885]
[1770494544669,0.27620567,2095.7,2094.6,0.56555318]
[1770494544871,0.27342491,2095.5,2094.4,0.80446318]
[1770494545268,0.27342491,2095.5,2094.4,0.80967288]
[1770494545574,0.27342491,2095.5,2094.5,0.56555318]
[1770494545772,0.27342491,2095.5,2094.6,0.56555318]
[1770494546770,0.27423313,2095.3,2093.5,5.68158689]
[1770494547072,0.27423313,2095.3,2094.1,0.80449318]
[1770494547274,0.27423313,2095.1,2094.1,0.80449318]
[1770494547675,0.27423313,2094.9,2094.1,0.23894]
[1770494548269,0.27423313,2094.9,2094.1,0.24342691]
[1770494550271,0.27423313,2094.9,2094.3,0.56555318]
[1770494550480,0.27467606,2095.2,2094.4,0.56555318]
[1770494553380,0.28056926,2095.9,2095.0,0.56555318]
[1770494553575,0.28056926,2095.7,2095.0,0.56555318]
[1770494556378,0.28351252,2096.0,2095.2,0.5786105]
[1770494558984,0.28351252,2096.0,2095.3,0.5786105]
[1770494560185,0.28580993,2096.1,2095.5,0.5786105]
[1770494561680,0.00490382,2096.1,2095.5,0.5786105]
[1770494562379,0.00490382,2096.1,2095.6,0.23877]
[1770494562584,0.28161406,2096.4,2095.8,0.5786105]
[1770494562887,0.28174391,2096.6,2095.8,0.8173605]
[1770494563185,0.28174391,2096.4,2095.8,0.23875]
[1770494563492,0.28539047,2096.4,2095.8,0.23875]
[1770494563690,0.28539047,2096.4,2095.9,0.5786105]
[1770494565888,42.73396556,2096.8,2095.6,0.00466654]
[1770494565889,0.28617145,2096.6,2096.1,0.5786105]
[1770494566384,0.28617145,2096.6,2096.0,0.23873]
[1770494566788,0.28617145,2096.6,2096.0,0.8173405]
[1770494566991,0.29138005,2096.6,2096.0,0.8173405]
[1770494567190,0.29138005,2096.6,2096.1,0.5786105]
[1770494567487,0.29138005,2096.6,2095.6,0.00466654]
[1770494567691,0.28608565,2096.4,2095.6,0.00466654]
[1770494567885,0.28608565,2096.4,2095.6,0.58327704]
[1770494570691,0.27608565,2096.4,2095.6,0.58327704]
[1770494570893,0.28608565,2096.4,2095.6,0.58327704]
[1770494571089,0.28608565,2096.4,2095.7,0.5786105]
[1770494574786,0.28608565,2096.4,2095.6,0.24343654]
[1770494576096,0.28807025,2096.2,2095.4,0.11360636]
[1770494576999,0.01,2096.4,2095.9,0.5786105]
[1770494577294,0.55527636,2096.4,2095.9,0.5786105]
[1770494577800,0.01,2096.4,2095.9,0.5786105]
[1770494577999,0.55527636,2096.4,2095.9,0.5786105]
[1770494578995,0.55527636,2096.4,2095.8,0.23875]
[1770494579189,0.55527636,2096.4,2095.8,0.8173605]
[1770494579602,0.55527636,2096.4,2095.8,0.23875]
[1770494579999,0.55527636,2096.4,2095.9,0.5786105]
[1770494580195,0.01,2096.4,2095.9,0.8173505]
[1770494580401,0.0052086,2096.6,2096.0,0.5786105]
[1770494581398,0.54527636,2096.4,2096.0,0.5786105]
[1770494582194,0.55048496,2096.6,2096.0,0.5786105]
[1770494582397,4.13585611,2096.5,2096.0,0.5786105]
[1770494582596,2.84893103,2096.9,2096.2,0.5786105]
[1770494582796,4.13519163,2096.8,2096.2,0.5786105]
[1770494583095,0.54527636,2096.9,2096.2,0.5786105]
[1770494583296,4.13518427,2096.8,2096.2,0.5786105]
[1770494583491,3.39420739,2097.2,2096.3,0.5786105]
[1770494583701,0.54527636,2097.0,2096.4,0.5786105]
[1770494585206,0.54527636,2097.0,2096.4,0.97757268]
[1770494585398,0.54527636,2097.0,2096.5,0.55371494]
[1770494585804,0.54527636,2097.0,2096.4,0.39896218]
[1770494586102,0.54527636,2097.0,2096.4,0.55371494]
[1770494586708,0.54527636,2097.0,2096.2,0.55371494]
[1770494586906,0.55321045,2096.8,2096.0,0.55371494]
[1770494587098,0.55321045,2096.6,2096.0,0.55371494]
[1770494589010,5.69786207,2097.1,2096.1,0.55371494]
[1770494589011,3.40214148,2097.1,2096.1,0.55371494]
[1770494589309,0.55779982,2097.2,2096.1,0.55371494]
[1770494589506,4.68590376,2097.1,2096.1,0.55371494]
[1770494589705,0.55321045,2097.1,2096.1,0.55371494]
[1770494589905,0.55321045,2097.1,2096.3,0.23869]
[1770494590107,42.73396556,2097.5,2096.8,0.55371494]
[1770494590413,0.01499045,2097.4,2097.0,0.55371494]
[1770494590710,0.55321045,2097.9,2097.0,0.55371494]
[1770494590905,0.55321045,2097.7,2097.0,0.55371494]
[1770494591203,0.55321045,2097.7,2097.0,0.55932022]
[1770494591204,0.00391031,2097.7,2097.0,0.55932022]
[1770494591409,0.01499045,2097.6,2097.0,0.55932022]
[1770494591909,0.01499045,2097.5,2097.0,0.55932022]
[1770494592112,0.01499045,2097.6,2097.0,0.55932022]
[1770494592607,0.01499045,2097.5,2097.0,0.55932022]
[1770494592811,0.01499045,2097.6,2097.0,0.55932022]
[1770494593110,0.56707981,2097.6,2097.0,0.55932022]
[1770494593413,0.56707981,2097.5,2097.0,0.55932022]
[1770494593712,0.55208936,2097.1,2096.6,0.56255532]
[1770494593907,0.55208936,2097.5,2096.6,0.56255532]
[1770494594109,0.56707981,2097.5,2096.6,0.56255532]
[1770494594313,0.55208936,2097.3,2096.6,0.56255532]
[1770494594705,0.01499045,2097.2,2096.6,0.56865509]
[1770494595112,0.01499045,2097.1,2096.6,0.56865509]
[1770494595315,0.56707981,2097.4,2096.6,0.56865509]
[1770494595515,0.55208936,2097.4,2096.6,0.56865509]
[1770494595813,0.00391031,2097.7,2096.9,0.56255532]
[1770494596808,0.00391031,2097.7,2096.6,0.00609977]